[Event "Late-Titled-Tuesday-Blitz-May-07-2024"]
[Site "Chess.com"]
[Date "2024.05.07"]
[Round "9"]
[White "wild3000"]
[Black "hsd2016"]
[Result "1-0"]
[WhiteElo "2479"]
[BlackElo "2356"]
[TimeControl "180+1"]
[EndTime "15:47:25 PDT"]
[Termination "wild3000 won by checkmate"]

1. b3 {[%clk 0:02:04]} 1... g6 {[%clk 0:02:54.3]} 2. Bb2 {[%clk 0:02:04.2]} 2...
Nf6 {[%clk 0:02:55.1]} 3. e4 {[%clk 0:02:03]} 3... Bg7 {[%clk 0:02:53.9]} 4. e5
{[%clk 0:02:02.9]} 4... Nd5 {[%clk 0:02:54.2]} 5. c4 {[%clk 0:02:02.6]} 5... Nb6
{[%clk 0:02:54.6]} 6. f4 {[%clk 0:02:00]} 6... d6 {[%clk 0:02:54.4]} 7. d4
{[%clk 0:01:58.7]} 7... c5 {[%clk 0:02:54.5]} 8. d5 {[%clk 0:01:57.9]} 8... dxe5
{[%clk 0:02:52.1]} 9. fxe5 {[%clk 0:01:51.6]} 9... e6 {[%clk 0:02:52]} 10. d6
{[%clk 0:01:45]} 10... Qh4+ {[%clk 0:02:50.9]} 11. Kd2 {[%clk 0:01:24.6]} 11...
Qf4+ {[%clk 0:02:45.9]} 12. Kc2 {[%clk 0:01:23.2]} 12... Nc6 {[%clk 0:02:45.9]}
13. a3 {[%clk 0:01:12.8]} 13... Bxe5 {[%clk 0:02:36.1]} 14. Nf3 {[%clk
0:01:07.6]} 14... Bxb2 {[%clk 0:02:33.5]} 15. Kxb2 {[%clk 0:01:07.9]} 15... O-O
{[%clk 0:02:19.9]} 16. Qd2 {[%clk 0:01:01.1]} 16... Qf6+ {[%clk 0:02:14.6]} 17.
Nc3 {[%clk 0:00:59.7]} 17... Rd8 {[%clk 0:02:14.4]} 18. Rd1 {[%clk 0:00:58.7]}
18... Nd4 {[%clk 0:02:03]} 19. Ne4 {[%clk 0:00:47.4]} 19... Qg7 {[%clk
0:01:36.1]} 20. Nxd4 {[%clk 0:00:45.8]} 20... cxd4 {[%clk 0:01:36.5]} 21. c5
{[%clk 0:00:43.6]} 21... Nd5 {[%clk 0:01:36.7]} 22. Qxd4 {[%clk 0:00:43.4]}
22... Bd7 {[%clk 0:01:30.3]} 23. Bc4 {[%clk 0:00:41.9]} 23... b6 {[%clk
0:00:51]} 24. Bxd5 {[%clk 0:00:38.1]} 24... Qxd4+ {[%clk 0:00:51.5]} 25. Rxd4
{[%clk 0:00:36.9]} 25... exd5 {[%clk 0:00:52.4]} 26. Nf6+ {[%clk 0:00:35.8]}
26... Kg7 {[%clk 0:00:51.7]} 27. Nxd7 {[%clk 0:00:33.6]} 27... Rxd7 {[%clk
0:00:52]} 28. b4 {[%clk 0:00:33.6]} 28... Rc8 {[%clk 0:00:47.8]} 29. Rxd5 {[%clk
0:00:31.9]} 29... Rc6 {[%clk 0:00:48.1]} 30. Rc1 {[%clk 0:00:24.5]} 30... Kf6
{[%clk 0:00:43.8]} 31. Kb3 {[%clk 0:00:23.8]} 31... Ke6 {[%clk 0:00:44.1]} 32.
Kc4 {[%clk 0:00:21.7]} 32... a6 {[%clk 0:00:34.9]} 33. Rf1 {[%clk 0:00:18.5]}
33... b5+ {[%clk 0:00:31.9]} 34. Kd4 {[%clk 0:00:18.6]} 34... f5 {[%clk
0:00:32.2]} 35. Re5+ {[%clk 0:00:16.9]} 35... Kf6 {[%clk 0:00:32.6]} 36. Rfe1
{[%clk 0:00:17.7]} 36... Rf7 {[%clk 0:00:22.5]} 37. h4 {[%clk 0:00:17]} 37...
Rc8 {[%clk 0:00:21.6]} 38. Re6+ {[%clk 0:00:16.5]} 38... Kg7 {[%clk 0:00:21.5]}
39. Kd5 {[%clk 0:00:16.9]} 39... f4 {[%clk 0:00:21.5]} 40. c6 {[%clk 0:00:16.5]}
40... f3 {[%clk 0:00:20.7]} 41. d7 {[%clk 0:00:16.2]} 41... Rd8 {[%clk
0:00:19.8]} 42. Re7 {[%clk 0:00:14.1]} 42... fxg2 {[%clk 0:00:17]} 43. Kd6
{[%clk 0:00:11.3]} 43... Rf8 {[%clk 0:00:11.3]} 44. Rxf7+ {[%clk 0:00:10.1]}
44... Kxf7 {[%clk 0:00:11.6]} 45. Rg1 {[%clk 0:00:10]} 45... Kg7 {[%clk
0:00:10.7]} 46. Rxg2 {[%clk 0:00:10.2]} 46... Rf3 {[%clk 0:00:11.2]} 47. d8=Q
{[%clk 0:00:09.7]} 47... Rxa3 {[%clk 0:00:12.1]} 48. Qe7+ {[%clk 0:00:09]} 48...
Kg8 {[%clk 0:00:12.7]} 49. Rd2 {[%clk 0:00:08.1]} 49... Rf3 {[%clk 0:00:11.9]}
50. c7 {[%clk 0:00:07.8]} 50... Rf8 {[%clk 0:00:12.8]} 51. Qxf8+ {[%clk
0:00:07.4]} 51... Kxf8 {[%clk 0:00:13.7]} 52. c8=Q+ {[%clk 0:00:07.8]} 52... Kg7
{[%clk 0:00:14.1]} 53. Qd7+ {[%clk 0:00:07.7]} 53... Kh6 {[%clk 0:00:15]} 54.
Qg4 {[%clk 0:00:07.4]} 54... Kg7 {[%clk 0:00:14.1]} 55. Qg5 {[%clk 0:00:08.3]}
55... h6 {[%clk 0:00:14]} 56. Qe7+ {[%clk 0:00:08]} 56... Kg8 {[%clk 0:00:14.9]}
57. Rf2 {[%clk 0:00:08.9]} 57... g5 {[%clk 0:00:14.8]} 58. Rf8# {[%clk
0:00:09.8]} 1-0

[Event "Late-Titled-Tuesday-Blitz-May-07-2024"]
[Site "Chess.com"]
[Date "2024.05.07"]
[Round "9"]
[White "m_ezat"]
[Black "GoltsevDmitry2000"]
[Result "0-1"]
[WhiteElo "2572"]
[BlackElo "2741"]
[TimeControl "180+1"]
[EndTime "15:47:28 PDT"]
[Termination "GoltsevDmitry2000 won by checkmate"]

1. d4 {[%clk 0:03:00.9]} 1... e6 {[%clk 0:02:59.3]} 2. c4 {[%clk 0:03:00.6]}
2... d5 {[%clk 0:02:58.9]} 3. Nc3 {[%clk 0:03:00.9]} 3... Nf6 {[%clk 0:02:58.8]}
4. cxd5 {[%clk 0:03:00.5]} 4... exd5 {[%clk 0:02:58.9]} 5. Bg5 {[%clk
0:02:59.3]} 5... c6 {[%clk 0:02:59.3]} 6. Qc2 {[%clk 0:02:58.5]} 6... h6 {[%clk
0:02:58.7]} 7. Bh4 {[%clk 0:02:54]} 7... Qa5 {[%clk 0:02:57.1]} 8. Bxf6 {[%clk
0:02:51.4]} 8... gxf6 {[%clk 0:02:57.6]} 9. e3 {[%clk 0:02:51.9]} 9... Na6
{[%clk 0:02:54.4]} 10. a3 {[%clk 0:02:50.7]} 10... Nb4 {[%clk 0:02:53.6]} 11.
Qd1 {[%clk 0:02:48]} 11... Na6 {[%clk 0:02:51.7]} 12. Bd3 {[%clk 0:02:34.7]}
12... Bd6 {[%clk 0:02:47.7]} 13. Ne2 {[%clk 0:02:33.2]} 13... Rg8 {[%clk
0:02:41.9]} 14. O-O {[%clk 0:02:29.7]} 14... h5 {[%clk 0:02:36.1]} 15. Ng3
{[%clk 0:02:28.4]} 15... Bg4 {[%clk 0:02:29.8]} 16. Be2 {[%clk 0:02:23.9]} 16...
O-O-O {[%clk 0:02:20.2]} 17. Nxh5 {[%clk 0:02:11.4]} 17... Bxh5 {[%clk
0:01:59.8]} 18. Bxh5 {[%clk 0:02:09.6]} 18... Rg7 {[%clk 0:01:54.1]} 19. g3
{[%clk 0:02:08.4]} 19... Rh8 {[%clk 0:01:52]} 20. b4 {[%clk 0:02:03]} 20... Qc7
{[%clk 0:01:35.3]} 21. b5 {[%clk 0:01:59]} 21... Nb8 {[%clk 0:01:16.2]} 22. bxc6
{[%clk 0:01:58.1]} 22... bxc6 {[%clk 0:01:16.4]} 23. Rb1 {[%clk 0:01:53.6]}
23... Rg5 {[%clk 0:01:15]} 24. Bf3 {[%clk 0:01:25.8]} 24... Rxh2 {[%clk
0:00:16.9]} 25. Bg4+ {[%clk 0:01:09.4]} 25... f5 {[%clk 0:00:12.8]} 26. Bxf5+
{[%clk 0:01:09]} 26... Kd8 {[%clk 0:00:09.1]} 27. Kxh2 {[%clk 0:01:06.1]} 27...
Bxg3+ {[%clk 0:00:08.9]} 28. Kh3 {[%clk 0:01:02.5]} 28... Qd6 {[%clk 0:00:05]}
29. Rxb8+ {[%clk 0:00:52.3]} 29... Qxb8 {[%clk 0:00:04.8]} 30. Qf3 {[%clk
0:00:48.1]} 30... Bd6 {[%clk 0:00:03.3]} 31. Bg4 {[%clk 0:00:42.7]} 31... Ke7
{[%clk 0:00:03.7]} 32. Rh1 {[%clk 0:00:36.6]} 32... Qg8 {[%clk 0:00:03.9]} 33.
e4 {[%clk 0:00:31.9]} 33... Kd8 {[%clk 0:00:03.2]} 34. e5 {[%clk 0:00:31.4]}
34... Be7 {[%clk 0:00:02.6]} 35. Nxd5 {[%clk 0:00:30]} 35... cxd5 {[%clk
0:00:02.3]} 36. Qxd5+ {[%clk 0:00:29.2]} 36... Ke8 {[%clk 0:00:02.4]} 37. Qa8+
{[%clk 0:00:27.5]} 37... Bd8 {[%clk 0:00:02.5]} 38. Qc6+ {[%clk 0:00:26.9]}
38... Kf8 {[%clk 0:00:02.7]} 39. Qc5+ {[%clk 0:00:26.1]} 39... Kg7 {[%clk
0:00:02.6]} 40. f4 {[%clk 0:00:17.7]} 40... Rg6 {[%clk 0:00:02.4]} 41. f5 {[%clk
0:00:14.2]} 41... Rg5 {[%clk 0:00:02.4]} 42. f6+ {[%clk 0:00:14]} 42... Bxf6
{[%clk 0:00:01]} 43. exf6+ {[%clk 0:00:13.3]} 43... Kg6 {[%clk 0:00:01.9]} 44.
Qc2+ {[%clk 0:00:12.3]} 44... Kxf6 {[%clk 0:00:02.6]} 45. Rf1+ {[%clk
0:00:10.5]} 45... Kg7 {[%clk 0:00:03.2]} 46. Qf2 {[%clk 0:00:08.6]} 46... Qh8+
{[%clk 0:00:03.3]} 47. Kg3 {[%clk 0:00:08.8]} 47... f5 {[%clk 0:00:03]} 48. Re1
{[%clk 0:00:03.6]} 48... Rxg4+ {[%clk 0:00:03.5]} 49. Kf3 {[%clk 0:00:03.8]}
49... Qh3+ {[%clk 0:00:04.1]} 50. Ke2 {[%clk 0:00:04.7]} 50... Rg2 {[%clk
0:00:04.1]} 51. Kd2 {[%clk 0:00:05.5]} 51... Rxf2+ {[%clk 0:00:04.2]} 52. Re2
{[%clk 0:00:05.9]} 52... Qg2 {[%clk 0:00:04.4]} 53. Kc3 {[%clk 0:00:05.5]} 53...
Rxe2 {[%clk 0:00:04.7]} 54. Kb4 {[%clk 0:00:06.3]} 54... Rc2 {[%clk 0:00:05.4]}
55. d5 {[%clk 0:00:06.6]} 55... Qd2+ {[%clk 0:00:06.3]} 56. Ka4 {[%clk
0:00:06.3]} 56... Qc3 {[%clk 0:00:07.2]} 57. Kb5 {[%clk 0:00:05.8]} 57... Rb2+
{[%clk 0:00:07.7]} 58. Ka6 {[%clk 0:00:06.7]} 58... Qc7 {[%clk 0:00:07.6]} 59.
a4 {[%clk 0:00:06.3]} 59... Qb6# {[%clk 0:00:08.5]} 0-1

[Event "Late-Titled-Tuesday-Blitz-May-07-2024"]
[Site "Chess.com"]
[Date "2024.05.07"]
[Round "9"]
[White "mishanick"]
[Black "vugarrasulov"]
[Result "1-0"]
[WhiteElo "3068"]
[BlackElo "2988"]
[TimeControl "180+1"]
[EndTime "15:47:33 PDT"]
[Termination "mishanick won on time"]

1. d4 {[%clk 0:03:00.9]} 1... d5 {[%clk 0:03:00.5]} 2. c4 {[%clk 0:03:01.2]}
2... dxc4 {[%clk 0:03:00.8]} 3. Nf3 {[%clk 0:03:01.3]} 3... Nf6 {[%clk
0:03:00.4]} 4. e3 {[%clk 0:03:01.9]} 4... e6 {[%clk 0:03:00.7]} 5. Bxc4 {[%clk
0:03:02.3]} 5... c5 {[%clk 0:03:00.5]} 6. O-O {[%clk 0:03:02.3]} 6... Nc6 {[%clk
0:02:59.3]} 7. Nc3 {[%clk 0:02:58.6]} 7... Be7 {[%clk 0:02:57.9]} 8. dxc5 {[%clk
0:02:53.8]} 8... Qxd1 {[%clk 0:02:56.1]} 9. Rxd1 {[%clk 0:02:54.7]} 9... Bxc5
{[%clk 0:02:55.5]} 10. Nd2 {[%clk 0:02:50.3]} 10... O-O {[%clk 0:02:50.6]} 11.
Nb3 {[%clk 0:02:39.7]} 11... Be7 {[%clk 0:02:49.8]} 12. e4 {[%clk 0:02:40.1]}
12... a6 {[%clk 0:02:44]} 13. f3 {[%clk 0:02:28.7]} 13... b5 {[%clk 0:02:42.2]}
14. Be2 {[%clk 0:02:29.2]} 14... Bb7 {[%clk 0:02:39.8]} 15. Be3 {[%clk
0:02:29.7]} 15... Rac8 {[%clk 0:02:16.8]} 16. Nc5 {[%clk 0:02:23.5]} 16... Bxc5
{[%clk 0:02:17.1]} 17. Bxc5 {[%clk 0:02:24.3]} 17... Rfe8 {[%clk 0:02:17.6]} 18.
a4 {[%clk 0:02:11.4]} 18... b4 {[%clk 0:02:13.3]} 19. Na2 {[%clk 0:02:06.7]}
19... a5 {[%clk 0:02:08.7]} 20. Bb5 {[%clk 0:02:02.1]} 20... Red8 {[%clk
0:01:57.2]} 21. Bb6 {[%clk 0:01:58.1]} 21... Rd7 {[%clk 0:01:43]} 22. Rxd7
{[%clk 0:01:06]} 22... Nxd7 {[%clk 0:01:43.9]} 23. Bxa5 {[%clk 0:01:05.8]} 23...
b3 {[%clk 0:01:11.9]} 24. Nc3 {[%clk 0:01:01.3]} 24... h5 {[%clk 0:00:56.7]} 25.
Rd1 {[%clk 0:00:59.7]} 25... Nxa5 {[%clk 0:00:52.8]} 26. Rxd7 {[%clk 0:00:58.8]}
26... Bc6 {[%clk 0:00:45.6]} 27. Rd6 {[%clk 0:00:19.8]} 27... Bxb5 {[%clk
0:00:41.3]} 28. axb5 {[%clk 0:00:20.7]} 28... Kf8 {[%clk 0:00:34.3]} 29. Rd4
{[%clk 0:00:08.8]} 29... Ke7 {[%clk 0:00:24]} 30. Rb4 {[%clk 0:00:05.9]} 30...
Kd6 {[%clk 0:00:12.5]} 31. b6 {[%clk 0:00:05.8]} 31... Kc6 {[%clk 0:00:10]} 32.
Kf2 {[%clk 0:00:03.5]} 32... Kb7 {[%clk 0:00:08.8]} 33. Ke2 {[%clk 0:00:03.8]}
33... Rc6 {[%clk 0:00:05.4]} 34. Rb5 {[%clk 0:00:03.5]} 34... Nc4 {[%clk
0:00:05.8]} 35. Rxb3 {[%clk 0:00:03.4]} 35... Rxb6 {[%clk 0:00:03.7]} 36. Rxb6+
{[%clk 0:00:02.9]} 36... Kxb6 {[%clk 0:00:04.6]} 37. b3 {[%clk 0:00:02.4]} 37...
Na5 {[%clk 0:00:05.1]} 38. b4 {[%clk 0:00:03]} 38... Nc6 {[%clk 0:00:05.7]} 39.
b5 {[%clk 0:00:03.2]} 39... Nd4+ {[%clk 0:00:05.7]} 40. Ke3 {[%clk 0:00:03.8]}
40... Nxb5 {[%clk 0:00:06.4]} 41. Nxb5 {[%clk 0:00:04.2]} 41... Kxb5 {[%clk
0:00:07.3]} 42. Kf4 {[%clk 0:00:04]} 42... f6 {[%clk 0:00:07.3]} 43. Kg3 {[%clk
0:00:03.9]} 43... Kc4 {[%clk 0:00:04.8]} 44. Kh4 {[%clk 0:00:04.2]} 44... g6
{[%clk 0:00:05.5]} 45. e5 {[%clk 0:00:04.9]} 45... fxe5 {[%clk 0:00:04.8]} 46.
Kg5 {[%clk 0:00:05.6]} 46... Kd3 {[%clk 0:00:04.4]} 47. Kxg6 {[%clk 0:00:05.3]}
47... e4 {[%clk 0:00:05.1]} 48. fxe4 {[%clk 0:00:05.8]} 48... Kxe4 {[%clk
0:00:06]} 49. Kxh5 {[%clk 0:00:06.6]} 49... e5 {[%clk 0:00:06.6]} 50. g4 {[%clk
0:00:07.1]} 50... Kd3 {[%clk 0:00:03.2]} 51. g5 {[%clk 0:00:07.6]} 51... e4
{[%clk 0:00:04.1]} 52. g6 {[%clk 0:00:07.9]} 52... e3 {[%clk 0:00:05]} 53. g7
{[%clk 0:00:08.5]} 53... e2 {[%clk 0:00:05.9]} 54. g8=Q {[%clk 0:00:09.2]} 54...
e1=Q {[%clk 0:00:06.8]} 55. Qg3+ {[%clk 0:00:09.7]} 55... Qxg3 {[%clk 0:00:05]}
56. hxg3 {[%clk 0:00:10.6]} 56... Ke4 {[%clk 0:00:05.6]} 57. g4 {[%clk
0:00:10.5]} 57... Ke5 {[%clk 0:00:06.5]} 58. g5 {[%clk 0:00:10.9]} 58... Ke6
{[%clk 0:00:07]} 59. Kh6 {[%clk 0:00:11.6]} 1-0

[Event "Late-Titled-Tuesday-Blitz-May-07-2024"]
[Site "Chess.com"]
[Date "2024.05.07"]
[Round "9"]
[White "ChEsper99"]
[Black "gabduschew"]
[Result "0-1"]
[WhiteElo "2297"]
[BlackElo "2426"]
[TimeControl "180+1"]
[EndTime "15:47:36 PDT"]
[Termination "gabduschew won on time"]

1. Nf3 {[%clk 0:03:00]} 1... d5 {[%clk 0:02:56.8]} 2. g3 {[%clk 0:02:59.5]} 2...
Nf6 {[%clk 0:02:56.3]} 3. Bg2 {[%clk 0:03:00]} 3... c6 {[%clk 0:02:56]} 4. O-O
{[%clk 0:03:00.2]} 4... Bf5 {[%clk 0:02:55.5]} 5. d3 {[%clk 0:02:57.8]} 5...
Nbd7 {[%clk 0:02:55.2]} 6. Nbd2 {[%clk 0:02:49.7]} 6... e5 {[%clk 0:02:54.7]} 7.
e4 {[%clk 0:02:49.6]} 7... Bg4 {[%clk 0:02:52.8]} 8. h3 {[%clk 0:02:47.7]} 8...
Bh5 {[%clk 0:02:52.4]} 9. Re1 {[%clk 0:02:46.2]} 9... Bd6 {[%clk 0:02:51.6]} 10.
d4 {[%clk 0:02:08.2]} 10... dxe4 {[%clk 0:02:36.9]} 11. dxe5 {[%clk 0:01:52.5]}
11... Nxe5 {[%clk 0:02:31.6]} 12. Nxe4 {[%clk 0:01:52.5]} 12... Nxe4 {[%clk
0:02:20.7]} 13. Rxe4 {[%clk 0:01:47.2]} 13... Bxf3 {[%clk 0:02:15]} 14. Qxf3
{[%clk 0:01:27]} 14... O-O {[%clk 0:02:00.5]} 15. Qe2 {[%clk 0:01:27.3]} 15...
Qc7 {[%clk 0:01:04.2]} 16. Bf4 {[%clk 0:01:17.5]} 16... Ng6 {[%clk 0:00:52.3]}
17. Bxd6 {[%clk 0:01:15.6]} 17... Qxd6 {[%clk 0:00:53.2]} 18. Rd1 {[%clk
0:01:15.5]} 18... Qf6 {[%clk 0:00:49.8]} 19. c3 {[%clk 0:01:12.2]} 19... Rad8
{[%clk 0:00:47.8]} 20. Red4 {[%clk 0:01:07.7]} 20... Rfe8 {[%clk 0:00:42.6]} 21.
Qd2 {[%clk 0:01:00]} 21... Rxd4 {[%clk 0:00:39.5]} 22. Qxd4 {[%clk 0:01:00.9]}
22... Re2 {[%clk 0:00:30.4]} 23. Qd8+ {[%clk 0:00:16.7]} 23... Qxd8 {[%clk
0:00:28.9]} 24. Rxd8+ {[%clk 0:00:17.6]} 24... Nf8 {[%clk 0:00:29.4]} 25. b3
{[%clk 0:00:09.8]} 25... Rxa2 {[%clk 0:00:28.2]} 26. Rb8 {[%clk 0:00:09.3]}
26... Ra1+ {[%clk 0:00:19.3]} 27. Kh2 {[%clk 0:00:09.1]} 27... b6 {[%clk
0:00:20.2]} 28. Bxc6 {[%clk 0:00:08.6]} 28... Rc1 {[%clk 0:00:11]} 29. c4 {[%clk
0:00:07.8]} 29... g6 {[%clk 0:00:08.8]} 30. Bd5 {[%clk 0:00:05.1]} 30... Rc3
{[%clk 0:00:06.1]} 31. Rb7 {[%clk 0:00:03.9]} 31... Ne6 {[%clk 0:00:06.4]} 32.
Bxe6 {[%clk 0:00:02.3]} 32... fxe6 {[%clk 0:00:07.3]} 33. Rxa7 {[%clk
0:00:02.6]} 33... Rxb3 {[%clk 0:00:07.8]} 34. Rb7 {[%clk 0:00:02.9]} 34... Rb4
{[%clk 0:00:07.9]} 35. Kg2 {[%clk 0:00:01.9]} 35... Rxc4 {[%clk 0:00:07.4]} 36.
Rxb6 {[%clk 0:00:02.2]} 36... Kf7 {[%clk 0:00:06.7]} 37. Rb7+ {[%clk 0:00:02.7]}
37... Kf6 {[%clk 0:00:07.2]} 38. Rxh7 {[%clk 0:00:02.6]} 38... Rc2 {[%clk
0:00:07.2]} 39. Ra7 {[%clk 0:00:03]} 39... Rb2 {[%clk 0:00:06.9]} 40. Ra4 {[%clk
0:00:02.7]} 40... Rd2 {[%clk 0:00:06.6]} 41. Re4 {[%clk 0:00:02.7]} 41... Rc2
{[%clk 0:00:05.7]} 42. h4 {[%clk 0:00:03]} 42... Rb2 {[%clk 0:00:05.7]} 43. Ra4
{[%clk 0:00:03.2]} 43... Rc2 {[%clk 0:00:06]} 44. Ra5 {[%clk 0:00:03.6]} 44...
Rb2 {[%clk 0:00:05.4]} 45. g4 {[%clk 0:00:04]} 45... Rb4 {[%clk 0:00:03.6]} 46.
Kg3 {[%clk 0:00:03.9]} 46... Rb3+ {[%clk 0:00:03.9]} 47. f3 {[%clk 0:00:04.4]}
47... e5 {[%clk 0:00:03.1]} 48. Ra6+ {[%clk 0:00:04]} 48... Kf7 {[%clk
0:00:03.1]} 49. Ra4 {[%clk 0:00:04.4]} 49... Kf6 {[%clk 0:00:03.2]} 50. Re4
{[%clk 0:00:04.8]} 50... Rd3 {[%clk 0:00:02.7]} 51. Re2 {[%clk 0:00:04.2]} 51...
Rc3 {[%clk 0:00:02.7]} 52. h5 {[%clk 0:00:01.5]} 52... Rd3 {[%clk 0:00:03.3]}
0-1

[Event "Late-Titled-Tuesday-Blitz-May-07-2024"]
[Site "Chess.com"]
[Date "2024.05.07"]
[Round "9"]
[White "Navyblue1"]
[Black "klifus"]
[Result "1-0"]
[WhiteElo "2226"]
[BlackElo "2135"]
[TimeControl "180+1"]
[EndTime "15:47:39 PDT"]
[Termination "Navyblue1 won on time"]

1. d4 {[%clk 0:03:00.9]} 1... Nf6 {[%clk 0:02:59.1]} 2. c4 {[%clk 0:03:01.3]}
2... g6 {[%clk 0:02:58.2]} 3. Nc3 {[%clk 0:03:01.5]} 3... Bg7 {[%clk 0:02:57.6]}
4. e4 {[%clk 0:03:02.1]} 4... d6 {[%clk 0:02:56.7]} 5. h3 {[%clk 0:02:57.7]}
5... O-O {[%clk 0:02:56.3]} 6. Be3 {[%clk 0:02:57.6]} 6... c5 {[%clk 0:02:56.1]}
7. d5 {[%clk 0:02:57.8]} 7... e6 {[%clk 0:02:55.4]} 8. Bd3 {[%clk 0:02:55.1]}
8... exd5 {[%clk 0:02:55]} 9. exd5 {[%clk 0:02:56]} 9... Re8 {[%clk 0:02:52.2]}
10. Nf3 {[%clk 0:02:51.3]} 10... Bh6 {[%clk 0:02:49]} 11. Qd2 {[%clk 0:02:50.8]}
11... Qe7 {[%clk 0:02:45.2]} 12. Nd1 {[%clk 0:02:30.3]} 12... Ne4 {[%clk
0:02:43]} 13. Bxe4 {[%clk 0:02:27.2]} 13... Qxe4 {[%clk 0:02:41.7]} 14. Rc1
{[%clk 0:02:14.6]} 14... b5 {[%clk 0:02:32.4]} 15. O-O {[%clk 0:02:08.9]} 15...
Bxe3 {[%clk 0:02:10]} 16. Qxe3 {[%clk 0:02:01.6]} 16... bxc4 {[%clk 0:02:04.1]}
17. Qxe4 {[%clk 0:02:00.2]} 17... Rxe4 {[%clk 0:02:03.2]} 18. Ne3 {[%clk
0:01:58.8]} 18... Ba6 {[%clk 0:01:53.6]} 19. Nd2 {[%clk 0:01:32.5]} 19... Rd4
{[%clk 0:01:47.4]} 20. Ndxc4 {[%clk 0:01:27.5]} 20... Bxc4 {[%clk 0:01:45.9]}
21. Rxc4 {[%clk 0:01:26.1]} 21... Nd7 {[%clk 0:01:40.6]} 22. Rxd4 {[%clk
0:01:24.9]} 22... cxd4 {[%clk 0:01:40]} 23. Nc4 {[%clk 0:01:24.7]} 23... Rb8
{[%clk 0:01:32.6]} 24. Rd1 {[%clk 0:01:13.9]} 24... Ne5 {[%clk 0:01:25.1]} 25.
b3 {[%clk 0:00:59.4]} 25... Rb5 {[%clk 0:01:01.2]} 26. Rxd4 {[%clk 0:00:54.5]}
26... Nxc4 {[%clk 0:00:59.4]} 27. bxc4 {[%clk 0:00:53.5]} 27... Rb1+ {[%clk
0:00:58.4]} 28. Kh2 {[%clk 0:00:52.5]} 28... Rc1 {[%clk 0:00:55.8]} 29. Kg3
{[%clk 0:00:48.9]} 29... Kg7 {[%clk 0:00:53]} 30. Kf3 {[%clk 0:00:44.8]} 30...
Kf6 {[%clk 0:00:51.6]} 31. Ke3 {[%clk 0:00:43.5]} 31... Rc2 {[%clk 0:00:50.9]}
32. a4 {[%clk 0:00:37.7]} 32... a5 {[%clk 0:00:49.2]} 33. Rf4+ {[%clk
0:00:35.5]} 33... Ke7 {[%clk 0:00:47.6]} 34. Kd3 {[%clk 0:00:32.1]} 34... Ra2
{[%clk 0:00:46.2]} 35. Re4+ {[%clk 0:00:22.1]} 35... Kd7 {[%clk 0:00:45.3]} 36.
Re1 {[%clk 0:00:20.6]} 36... Rxa4 {[%clk 0:00:33.9]} 37. Rb1 {[%clk 0:00:20.8]}
37... Rb4 {[%clk 0:00:31.4]} 38. Ra1 {[%clk 0:00:20]} 38... a4 {[%clk 0:00:30]}
39. Kc3 {[%clk 0:00:20.1]} 39... Rb3+ {[%clk 0:00:29.6]} 40. Kc2 {[%clk
0:00:20]} 40... Rb4 {[%clk 0:00:28.6]} 41. Kc3 {[%clk 0:00:19.3]} 41... Rb1
{[%clk 0:00:22.5]} 42. Rxa4 {[%clk 0:00:18.5]} 42... Rf1 {[%clk 0:00:20.8]} 43.
Ra7+ {[%clk 0:00:18]} 43... Ke8 {[%clk 0:00:19.7]} 44. Ra2 {[%clk 0:00:17.9]}
44... f5 {[%clk 0:00:17.9]} 45. Re2+ {[%clk 0:00:17.9]} 45... Kd7 {[%clk
0:00:16.5]} 46. g3 {[%clk 0:00:18.5]} 46... Rh1 {[%clk 0:00:15.8]} 47. h4 {[%clk
0:00:18.7]} 47... Rf1 {[%clk 0:00:13.1]} 48. Kd3 {[%clk 0:00:18.6]} 48... Rd1+
{[%clk 0:00:12.7]} 49. Ke3 {[%clk 0:00:18.3]} 49... Rc1 {[%clk 0:00:12.4]} 50.
Kd3 {[%clk 0:00:18.8]} 50... Rd1+ {[%clk 0:00:12.5]} 51. Kc2 {[%clk 0:00:19.1]}
51... Rd4 {[%clk 0:00:12]} 52. Kc3 {[%clk 0:00:19]} 52... Rg4 {[%clk 0:00:11.5]}
53. Rb2 {[%clk 0:00:18.8]} 53... f4 {[%clk 0:00:11.2]} 54. gxf4 {[%clk 0:00:18]}
54... Rxh4 {[%clk 0:00:09.9]} 55. Rb7+ {[%clk 0:00:17.7]} 55... Kc8 {[%clk
0:00:09.9]} 56. Rf7 {[%clk 0:00:17]} 56... h5 {[%clk 0:00:08.4]} 57. Kd3 {[%clk
0:00:17]} 57... Rh3+ {[%clk 0:00:07.8]} 58. Ke4 {[%clk 0:00:17.1]} 58... Rc3
{[%clk 0:00:07.4]} 59. Rg7 {[%clk 0:00:16.8]} 59... Rxc4+ {[%clk 0:00:06.8]} 60.
Kf3 {[%clk 0:00:17.2]} 60... Rc3+ {[%clk 0:00:06]} 61. Kg2 {[%clk 0:00:17.4]}
61... h4 {[%clk 0:00:04]} 62. Rxg6 {[%clk 0:00:17.5]} 62... h3+ {[%clk
0:00:04.1]} 63. Kh2 {[%clk 0:00:17.4]} 63... Rf3 {[%clk 0:00:02.8]} 64. Rxd6
{[%clk 0:00:17.6]} 64... Rxf2+ {[%clk 0:00:00.3]} 65. Kxh3 {[%clk 0:00:18.3]}
1-0